bitfinex/quotes_SOLUSD_20241123
["timestamp","ask_amount","ask_price","bid_price","bid_amount"]
[1732382422681,18.9,255.74,255.7,6.09043063]
[1732382422993,18.9,255.74,255.6,7.6069493]
[1732382422994,18.9,255.74,255.72,6.09043063]
[1732382423181,18.9,255.74,255.61,20.0]
[1732382423362,18.9,255.73,255.72,6.09043063]
[1732382423561,6.09043063,255.79,255.7,6.09043063]
[1732382423786,19.4,255.78,255.7,6.09043063]
[1732382425965,19.4,255.78,255.59,16.7323587]
[1732382425966,23.776884,255.74,255.59,9.0061]
[1732382426181,25.49043063,255.73,255.65,6.09043063]
[1732382426365,19.4,255.72,255.65,6.09043063]
[1732382427971,19.4,255.72,255.69,6.09043063]
[1732382431667,19.4,255.71,255.67,6.09043063]
[1732382432376,19.4,255.71,255.69,6.09043063]
[1732382434072,19.4,255.71,255.6,20.0]
[1732382434280,19.4,255.71,255.66,6.09043063]
[1732382434686,19.4,255.7,255.66,6.09043063]
[1732382436090,19.4,255.7,255.64,6.09043063]
[1732382436483,25.49043063,255.7,255.61,6.09043063]
[1732382436670,25.49043063,255.7,255.62,20.0]
[1732382436870,25.49043063,255.7,255.61,6.09043063]
[1732382437095,19.4,255.69,255.62,6.09043063]
[1732382437592,6.03016671,255.84,255.7,20.0]
[1732382437769,23.2924,255.96,255.73,20.0]
[1732382437770,2.1,255.83,255.73,20.0]
[1732382437975,2.1,255.82,255.63,32.9156]
[1732382438195,2.1,255.81,255.64,20.0]
[1732382438385,8.19043063,255.81,255.64,20.0]
[1732382438571,2.1,255.81,255.7,6.09043063]
[1732382438895,6.09043063,255.79,255.7,6.09043063]
[1732382439093,2.1,255.78,255.64,20.0]
[1732382439272,8.19043063,255.77,255.6,23.776884]
[1732382439471,6.09043063,255.75,255.58,7.78808963]
[1732382439681,2.1,255.74,255.65,6.09043063]
[1732382439972,8.19043063,255.73,255.63,6.09043063]
[1732382440594,6.09043063,255.64,255.56,5.53098804]
[1732382440808,6.09043063,255.62,255.53,6.09043063]
[1732382441094,23.776884,255.61,255.51,6.09043063]
[1732382441281,23.776884,255.62,255.55,6.09043063]
[1732382441592,2.1,255.63,255.55,6.09043063]
[1732382441792,2.1,255.63,255.45,24.36172252]
[1732382441979,2.1,255.62,255.56,6.09043063]
[1732382442183,2.1,255.61,255.45,24.36172252]
[1732382442374,2.1,255.6,255.56,6.09043063]
[1732382442572,23.776884,255.63,255.56,6.09043063]
[1732382442770,0.2,255.62,255.56,6.09043063]
[1732382443689,0.2,255.62,255.6,6.09043063]
[1732382444286,8.9476,255.72,255.6,6.09043063]
[1732382444287,0.2,255.61,255.6,6.09043063]
[1732382444474,8.9476,255.72,255.61,8.52336046]
[1732382444676,0.2,255.69,255.59,8.52336046]
[1732382444874,0.2,255.69,255.61,6.09043063]
[1732382445580,0.2,255.69,255.63,6.09043063]
[1732382445981,0.2,255.69,255.45,34.36172252]
[1732382445982,6.29043063,255.69,255.59,6.09043063]
[1732382446197,6.29043063,255.69,255.61,6.09043063]
[1732382446690,0.2,255.69,255.61,6.09043063]
[1732382447379,0.2,255.69,255.63,6.09043063]
[1732382447699,0.2,255.69,255.61,6.09043063]
[1732382447880,0.2,255.68,255.61,6.09043063]
[1732382448699,0.2,255.68,255.57,8.52336046]
[1732382448990,6.09043063,255.63,255.51,8.52336046]
[1732382449172,0.2,255.62,255.54,8.52336046]
[1732382449374,0.2,255.62,255.55,6.09043063]
[1732382449685,0.2,255.62,255.56,8.52336046]
[1732382450391,0.2,255.62,255.58,8.52336046]
[1732382450574,0.2,255.61,255.58,8.52336046]
[1732382451202,0.2,255.61,255.57,6.09043063]
[1732382451873,0.2,255.61,255.55,6.09043063]
[1732382452077,0.2,255.61,255.56,8.52336046]
[1732382453081,0.2,255.61,255.55,6.09043063]
[1732382453783,0.2,255.61,255.56,8.52336046]
[1732382454194,0.2,255.61,255.58,6.09043063]
[1732382454581,0.2,255.61,255.53,8.52336046]
[1732382454783,0.2,255.61,255.55,6.09043063]
[1732382454977,0.2,255.61,255.55,14.61379109]
[1732382455393,0.2,255.61,255.57,6.09043063]
[1732382455901,0.2,255.6,255.57,14.61379109]
[1732382457089,0.2,255.6,255.59,6.09043063]
[1732382458295,0.2,255.6,255.59,14.61379109]
[1732382458805,6.09043063,255.68,255.53,8.52336046]
[1732382459002,0.2,255.67,255.58,6.09043063]
[1732382460484,6.09043063,255.66,255.58,6.09043063]
[1732382460690,6.09043063,255.66,255.56,6.09043063]
[1732382462103,0.2,255.65,255.6,6.09043063]
[1732382462286,0.2,255.64,255.58,6.09043063]
[1732382463512,0.2,255.64,255.51,8.52336046]
[1732382463694,0.2,255.63,255.56,6.09043063]
[1732382464208,0.2,255.63,255.58,6.09043063]
[1732382464442,0.2,255.62,255.58,6.09043063]
[1732382464800,0.2,255.62,255.56,6.09043063]
[1732382465013,0.2,255.62,255.58,6.09043063]
[1732382465691,0.2,255.62,255.51,8.52336046]
[1732382465896,0.2,255.62,255.45,47.73922252]
[1732382465897,6.29043063,255.62,255.53,6.09043063]
[1732382466105,0.2,255.61,255.52,6.09043063]
[1732382466488,0.2,255.61,255.54,6.09043063]
[1732382467105,0.2,255.61,255.56,6.09043063]
[1732382467316,0.2,255.61,255.58,6.09043063]
[1732382467513,0.2,255.6,255.58,6.09043063]
[1732382468806,0.2,255.59,255.58,14.61379109]
[1732382469018,6.09043063,255.69,255.58,14.61379109]
[1732382469193,0.2,255.68,255.6,6.09043063]
[1732382470486,6.09043063,255.67,255.58,14.61379109]
[1732382471388,6.09043063,255.67,255.58,6.09043063]
[1732382473217,6.09043063,255.67,255.45,47.73922252]
[1732382473218,6.09043063,255.65,255.52,8.52336046]
[1732382473397,6.09043063,255.65,255.55,14.61379109]
[1732382473398,0.2,255.64,255.55,14.61379109]
[1732382473601,0.2,255.64,255.57,6.09043063]
[1732382476790,0.2,255.63,255.57,6.09043063]
[1732382477299,0.2,255.63,255.59,6.09043063]
[1732382477503,0.2,255.62,255.59,6.09043063]
[1732382478519,0.2,255.62,255.57,6.09043063]
[1732382479125,0.2,255.62,255.59,6.09043063]
[1732382479719,0.2,255.62,255.61,6.09043063]
[1732382482500,0.2,255.62,255.59,6.09043063]
[1732382482703,0.2,255.61,255.59,6.09043063]
[1732382483312,6.09043063,255.67,255.53,8.52336046]
[1732382483522,6.09043063,255.67,255.57,6.09043063]
[1732382484432,6.09043063,255.65,255.56,6.09043063]
[1732382484633,10.0,255.68,255.58,6.09043063]
[1732382484934,16.09043063,255.68,255.58,6.09043063]
[1732382485220,6.09043063,255.68,255.58,6.09043063]
[1732382486525,6.09043063,255.66,255.58,6.09043063]
[1732382486703,6.09043063,255.66,255.56,6.09043063]
[1732382489237,6.09043063,255.64,255.5,8.52336046]
[1732382489411,6.09043063,255.64,255.54,6.09043063]
[1732382489811,12.12059734,255.64,255.54,6.09043063]
[1732382490121,6.03016671,255.63,255.54,6.09043063]
[1732382490324,6.09043063,255.62,255.52,6.09043063]
[1732382490525,6.03016671,255.61,255.52,6.09043063]
[1732382491204,22.06033342,255.64,255.48,8.52336046]
[1732382491205,6.08672018,255.53,255.48,8.52336046]
[1732382491533,12.06033342,255.55,255.52,6.09043063]
[1732382491908,14.74470967,255.54,255.52,6.09043063]
[1732382492239,6.08687788,255.53,255.52,6.09043063]
[1732382492437,6.08687788,255.53,255.47,8.52336046]
[1732382492631,6.08687788,255.52,255.5,6.09043063]
[1732382492934,6.08687788,255.51,255.5,6.09043063]
[1732382493119,6.08687788,255.52,255.5,6.09043063]
[1732382493924,6.08687788,255.51,255.5,6.09043063]
[1732382494114,14.74381133,255.53,255.5,6.09043063]
[1732382494309,6.08265671,255.51,255.5,6.09043063]
[1732382494515,6.08265671,255.51,255.47,8.52336046]
[1732382494930,6.08265671,255.51,255.47,14.61379109]
[1732382495143,6.08265671,255.48,255.47,14.61379109]
[1732382495318,6.08265671,255.49,255.47,14.61379109]
[1732382495517,6.08265671,255.49,255.4,8.52336046]
[1732382495743,6.08265671,255.46,255.42,8.52336046]
[1732382496029,6.08265671,255.46,255.43,6.09043063]
[1732382496217,6.08265671,255.47,255.45,14.61379109]
[1732382496625,6.08265671,255.48,255.45,14.61379109]
[1732382496825,12.06033342,255.5,255.47,6.09043063]
[1732382497020,6.07658011,255.48,255.47,14.61379109]
[1732382497236,6.07658011,255.49,255.47,14.61379109]
[1732382499840,6.07658011,255.49,255.43,6.09043063]
[1732382500011,6.07658011,255.48,255.45,14.61379109]
[1732382500338,6.07658011,255.5,255.45,14.61379109]
[1732382500521,6.07658011,255.49,255.45,14.61379109]
[1732382501213,6.07658011,255.47,255.45,14.61379109]
[1732382501410,6.07658011,255.46,255.45,6.09043063]
[1732382501637,12.06033342,255.49,255.45,6.09043063]
[1732382501638,6.07658011,255.47,255.45,6.09043063]
[1732382501821,6.07658011,255.46,255.45,6.09043063]
[1732382502334,6.07658011,255.47,255.45,6.09043063]
[1732382502721,6.07658011,255.47,255.44,6.09043063]
[1732382503245,6.07658011,255.46,255.43,8.52336046]
[1732382503736,6.07658011,255.47,255.45,8.52336046]
[1732382504347,6.07658011,255.47,255.46,6.09043063]
[1732382504516,6.07658011,255.5,255.48,8.52336046]
[1732382504845,6.07658011,255.5,255.49,6.09043063]
[1732382505018,6.07658011,255.51,255.49,6.09043063]
[1732382505216,6.07658011,255.52,255.49,6.09043063]
[1732382505827,6.07658011,255.52,255.48,14.61379109]
[1732382506231,6.07658011,255.53,255.48,6.09043063]
[1732382507147,6.07658011,255.5,255.46,14.61379109]
[1732382507319,6.07658011,255.51,255.48,14.61379109]
[1732382507638,6.07658011,255.52,255.48,14.61379109]
[1732382507938,6.07658011,255.52,255.5,8.52336046]
[1732382508349,6.07658011,255.53,255.5,8.52336046]
[1732382509922,6.07658011,255.53,255.5,14.61379109]
[1732382511020,2.67489808,255.57,255.39,27.16120461]
[1732382511021,6.07658011,255.54,255.52,38.39067509]
[1732382511244,6.07658011,255.57,255.56,8.52336046]
[1732382511740,6.07658011,255.58,255.55,6.09043063]
[1732382512040,6.07658011,255.58,255.54,8.52336046]
[1732382512252,6.07658011,255.56,255.5,14.61379109]
[1732382512436,6.07658011,255.54,255.5,8.52336046]
[1732382513050,6.07658011,255.54,255.53,8.52336046]
[1732382514243,6.07658011,255.55,255.53,8.52336046]
[1732382515047,6.07658011,255.56,255.53,8.52336046]
[1732382515250,6.07658011,255.55,255.53,8.52336046]
[1732382516144,6.07658011,255.56,255.53,8.52336046]
[1732382516342,6.07658011,255.57,255.55,8.52336046]
[1732382516731,2.67676841,255.6,255.55,8.52336046]
[1732382516732,6.07658011,255.58,255.55,8.52336046]
[1732382516934,6.07658011,255.59,255.55,8.52336046]
[1732382517149,6.07658011,255.59,255.57,8.52336046]
[1732382517347,6.07658011,255.6,255.57,8.52336046]
[1732382517539,6.07658011,255.61,255.57,8.52336046]
[1732382518157,6.07658011,255.61,255.58,8.52336046]
[1732382518158,6.07658011,255.6,255.58,8.52336046]
[1732382518447,12.16701074,255.61,255.58,8.52336046]
[1732382518647,6.07658011,255.61,255.58,8.52336046]
[1732382521150,6.09824609,255.62,255.54,6.09824609]
[1732382523545,6.09824609,255.6,255.48,20.0]
[1732382523740,6.09824609,255.6,255.51,23.776884]
[1732382523952,6.09824609,255.6,255.5,6.09824609]
[1732382524748,6.09824609,255.58,255.5,6.09824609]
[1732382526160,6.07658011,255.61,255.52,6.09824609]
[1732382526161,6.09824609,255.6,255.52,6.09824609]
[1732382526355,12.1748262,255.62,255.52,6.09824609]
[1732382526738,6.07658011,255.61,255.52,6.09824609]
[1732382527651,6.07658011,255.6,255.52,6.09824609]
[1732382527858,6.09824609,255.61,255.52,6.09824609]
[1732382528038,6.07658011,255.62,255.52,6.09824609]
[1732382528346,6.09824609,255.61,255.52,6.09824609]
[1732382530748,6.09824609,255.59,255.51,23.776884]
[1732382531359,12.1748262,255.59,255.51,23.776884]
[1732382531556,6.09824609,255.59,255.51,23.776884]
[1732382531766,12.1748262,255.59,255.51,23.776884]
[1732382532558,12.1748262,255.59,255.5,6.09824609]
[1732382532856,6.07658011,255.58,255.5,6.09824609]
[1732382533740,6.09824609,255.55,255.41,9.475]
[1732382533945,6.09824609,255.55,255.46,6.09824609]
[1732382534539,12.1748262,255.55,255.46,6.09824609]
[1732382534737,6.07658011,255.54,255.4,2.40283794]
[1732382534941,6.07658011,255.54,255.46,6.09824609]
[1732382536156,6.07658011,255.54,255.47,23.776884]
[1732382537340,6.07658011,255.53,255.47,23.776884]
[1732382538254,18.13691353,255.56,255.51,23.776884]
[1732382538435,6.07658011,255.56,255.51,23.776884]
[1732382539057,6.07658011,255.55,255.49,23.776884]
[1732382539264,6.07658011,255.56,255.49,23.776884]
[1732382539454,6.07658011,255.55,255.49,23.776884]
[1732382539657,6.07658011,255.54,255.48,6.09824609]
[1732382539871,6.07658011,255.54,255.46,6.09824609]
[1732382540057,6.07658011,255.54,255.48,6.09824609]
[1732382540265,6.07658011,255.54,255.5,6.09824609]
[1732382540443,6.07658011,255.55,255.51,23.776884]
[1732382540761,6.07658011,255.57,255.53,23.776884]
[1732382541260,6.09824609,255.56,255.4,9.475]
[1732382541445,6.07658011,255.55,255.48,23.776884]
[1732382541768,6.07658011,255.53,255.45,6.09824609]
[1732382541965,6.07658011,255.52,255.45,6.09824609]
[1732382542640,6.07658011,255.52,255.43,6.09824609]
[1732382542840,6.07658011,255.51,255.43,6.09824609]
[1732382543147,6.07658011,255.51,255.46,23.776884]
[1732382543551,6.07658011,255.51,255.41,23.776884]
[1732382543855,6.07658011,255.5,255.43,23.776884]
[1732382544056,6.07658011,255.5,255.42,6.09824609]
[1732382544357,6.07658011,255.49,255.41,6.09824609]
[1732382544945,6.07658011,255.5,255.43,6.09824609]
[1732382545460,6.07658011,255.51,255.44,23.776884]
[1732382545640,6.07658011,255.51,255.45,6.09824609]
[1732382545957,6.07658011,255.51,255.46,23.776884]
[1732382546347,6.07658011,255.52,255.46,23.776884]
[1732382546567,6.07658011,255.51,255.46,23.776884]
[1732382546863,6.07658011,255.53,255.46,23.776884]
[1732382547070,6.07658011,255.53,255.47,6.09824609]
[1732382547247,6.07658011,255.53,255.48,23.776884]
[1732382548337,6.07658011,255.54,255.48,23.776884]
[1732382548743,6.07658011,255.55,255.48,23.776884]
[1732382549558,6.07658011,255.54,255.48,23.776884]
[1732382549761,6.07658011,255.55,255.47,6.09824609]
[1732382550881,6.07658011,255.55,255.41,7.89458793]
[1732382550882,6.07658011,255.55,255.51,6.09824609]
[1732382551048,6.07658011,255.56,255.51,6.09824609]
[1732382551844,6.07658011,255.56,255.55,6.09824609]
[1732382552147,6.07658011,255.59,255.56,23.776884]
[1732382552375,6.07658011,255.6,255.57,6.09824609]
[1732382552560,6.07658011,255.6,255.59,6.09824609]
[1732382553072,6.07658011,255.62,255.6,23.776884]
[1732382553370,6.09824609,255.66,255.6,23.776884]
[1732382553664,6.09824609,255.66,255.59,6.09824609]
[1732382554252,6.09824609,255.66,255.52,7.72084235]
[1732382554253,6.09824609,255.66,255.57,6.09824609]
[1732382554866,6.07658011,255.7,255.63,6.09824609]
[1732382555250,12.1748262,255.71,255.63,6.09824609]
[1732382555745,6.07658011,255.72,255.65,6.09824609]
[1732382555962,6.09824609,255.72,255.65,6.09824609]
[1732382556145,6.07658011,255.73,255.67,6.09824609]
[1732382556468,6.07658011,255.73,255.58,24.39298436]
[1732382556469,30.91634609,255.76,255.69,6.09824609]
[1732382558154,30.91634609,255.76,255.67,6.09824609]
[1732382558964,20.0,255.68,255.48,32.603]
[1732382559186,6.09824609,255.65,255.56,6.09824609]
[1732382559382,6.09824609,255.63,255.54,6.09824609]
[1732382559688,6.09824609,255.63,255.53,6.09824609]
[1732382560064,6.09824609,255.65,255.55,6.09824609]
[1732382560262,6.09824609,255.63,255.55,6.09824609]
[1732382560772,20.0,255.7,255.61,6.09824609]
[1732382560981,6.07658011,255.71,255.65,6.09824609]
[1732382560982,20.0,255.71,255.65,6.09824609]
[1732382561284,20.0,255.71,255.63,6.09824609]
[1732382562387,20.0,255.69,255.61,6.09824609]
[1732382562693,29.52316596,255.69,255.61,9.52316596]
[1732382564184,9.52316596,255.67,255.59,9.52316596]
[1732382564691,9.52316596,255.69,255.59,13.10914835]
[1732382565490,9.52316596,255.67,255.59,13.10914835]
[1732382566560,9.52316596,255.67,255.59,3.58598239]
[1732382566970,9.52316596,255.67,255.6,9.52316596]
[1732382567274,9.52316596,255.67,255.58,12.96221827]
[1732382567977,9.02316596,255.67,255.58,3.43905231]
[1732382568286,9.02316596,255.67,255.59,9.52316596]
[1732382568892,20.0,255.73,255.63,9.52316596]
[1732382569078,20.0,255.71,255.63,9.52316596]
[1732382569268,9.52316596,255.72,255.65,9.52316596]
[1732382570180,9.52316596,255.74,255.65,9.52316596]
[1732382572077,9.52316596,255.74,255.67,9.52316596]
[1732382573774,34.34126596,255.76,255.69,9.52316596]
[1732382574086,9.52316596,255.78,255.69,17.50153399]
[1732382574394,9.52316596,255.78,255.7,4.17820461]
[1732382574973,9.52316596,255.78,255.71,23.776884]
[1732382577489,9.52316596,255.78,255.71,9.52316596]
[1732382577869,9.52316596,255.78,255.71,13.70137057]
[1732382578191,25.36426596,255.82,255.74,9.52316596]
[1732382578365,15.8411,255.88,255.81,9.52316596]
[1732382578569,25.36426596,255.88,255.81,9.52316596]
[1732382579264,25.36426596,255.88,255.82,23.776884]
[1732382580500,9.52316596,255.86,255.79,9.52316596]
[1732382580687,9.52316596,255.86,255.8,23.776884]
[1732382581391,20.0,255.93,255.81,9.52316596]
[1732382581697,25.8411,255.94,255.84,23.776884]
[1732382581698,9.52316596,255.9,255.84,23.776884]
[1732382581901,9.52316596,255.9,255.83,9.52316596]
[1732382581902,9.52316596,255.88,255.81,9.52316596]
[1732382582586,25.5001,255.84,255.59,24.2234]
[1732382582788,9.52316596,255.77,255.7,9.52316596]
[1732382583003,9.52316596,255.75,255.67,9.52316596]
[1732382584796,9.52316596,255.77,255.69,9.52316596]
[1732382584996,15.8411,255.78,255.71,9.52316596]
[1732382586485,9.52316596,255.81,255.73,9.52316596]
[1732382587014,9.52316596,255.83,255.75,9.52316596]
[1732382587879,16.517,255.84,255.75,9.52316596]
[1732382588190,9.52316596,255.83,255.75,9.52316596]
[1732382589491,9.52316596,255.81,255.73,9.52316596]
[1732382589704,9.52316596,255.79,255.71,9.52316596]
[1732382589903,9.52316596,255.77,255.69,9.52316596]
[1732382590614,9.52316596,255.79,255.71,9.52316596]
[1732382591309,9.52316596,255.81,255.73,9.52316596]
[1732382592186,9.52316596,255.79,255.71,9.52316596]
[1732382592621,9.52316596,255.81,255.73,9.52316596]
[1732382594206,16.517,255.84,255.73,9.52316596]
[1732382594207,20.0,255.82,255.73,9.52316596]
[1732382594490,20.0,255.82,255.75,9.52316596]
[1732382595503,20.0,255.82,255.63,9.1792]
[1732382595504,9.52316596,255.79,255.71,9.52316596]
[1732382595912,9.52316596,255.72,255.51,21.7468]
[1732382596114,9.52316596,255.72,255.63,9.52316596]
[1732382596296,25.33096596,255.74,255.65,9.52316596]
[1732382596493,15.8078,255.74,255.67,9.52316596]
[1732382596715,25.33096596,255.74,255.67,9.52316596]
[1732382597220,15.8078,255.74,255.67,9.52316596]
[1732382597392,25.33096596,255.74,255.67,9.52316596]
[1732382599194,15.8078,255.74,255.67,9.52316596]
[1732382599593,9.52316596,255.76,255.67,9.52316596]
[1732382600608,9.52316596,255.76,255.62,6.0279]
[1732382600609,20.0,255.77,255.69,9.52316596]
[1732382600923,26.03026596,255.8,255.73,9.52316596]
[1732382601225,26.03026596,255.8,255.71,9.52316596]
[1732382601397,9.52316596,255.78,255.71,9.52316596]
[1732382601702,9.52316596,255.76,255.69,9.52316596]
[1732382603217,15.59974607,255.78,255.69,9.52316596]
[1732382603515,9.52316596,255.78,255.71,9.52316596]
[1732382603821,9.52316596,255.78,255.69,9.52316596]
[1732382604028,15.59974607,255.78,255.69,9.52316596]
[1732382604201,9.52316596,255.78,255.69,9.52316596]
[1732382604719,9.52316596,255.78,255.71,9.52316596]
[1732382606694,32.10684607,255.8,255.62,3.86720206]
[1732382606999,32.10684607,255.8,255.59,7.70711723]
[1732382607000,9.52316596,255.76,255.67,9.52316596]
[1732382607197,9.52316596,255.72,255.63,9.52316596]
[1732382607424,9.52316596,255.72,255.65,9.52316596]
[1732382608214,9.52316596,255.74,255.65,9.52316596]
[1732382608521,9.52316596,255.76,255.67,9.52316596]
[1732382609400,9.52316596,255.76,255.69,9.52316596]
[1732382609908,9.52316596,255.78,255.69,9.52316596]
[1732382610103,9.52316596,255.74,255.65,3.86720206]
[1732382610322,9.52316596,255.76,255.67,9.52316596]
[1732382610622,9.52316596,255.72,255.65,3.86720206]
[1732382610832,45.499284,255.69,255.62,3.86720206]
[1732382611031,45.499284,255.69,255.42,21.6581]
[1732382611032,9.52316596,255.63,255.54,3.86720206]
[1732382611220,9.52316596,255.63,255.53,13.39036802]
[1732382611542,9.52316596,255.65,255.55,9.52316596]
[1732382612007,9.52316596,255.67,255.57,9.52316596]
[1732382612208,25.07886596,255.69,255.59,9.52316596]
[1732382612717,25.07886596,255.69,255.59,13.39036802]
[1732382612916,25.07886596,255.69,255.59,9.52316596]
[1732382613118,25.07886596,255.69,255.59,13.39036802]
[1732382613735,9.52316596,255.69,255.59,13.39036802]
[1732382613916,9.52316596,255.71,255.61,9.52316596]
[1732382615026,9.52316596,255.71,255.63,9.52316596]
[1732382615227,9.52316596,255.73,255.63,9.52316596]
[1732382615437,27.79898011,255.75,255.65,9.52316596]
[1732382615438,25.07886596,255.75,255.65,9.52316596]
[1732382615932,9.52316596,255.75,255.65,9.52316596]
[1732382616232,9.52316596,255.77,255.67,9.52316596]
[1732382617013,9.52316596,255.77,255.69,9.52316596]
[1732382617209,9.52316596,255.77,255.67,5.04043771]
[1732382617210,6.07658011,255.79,255.71,9.52316596]
[1732382618033,15.59974607,255.8,255.71,9.52316596]
[1732382618533,9.52316596,255.78,255.71,9.52316596]
[1732382619039,9.52316596,255.8,255.71,9.52316596]
[1732382619211,9.52316596,255.82,255.73,9.52316596]
[1732382620133,9.52316596,255.84,255.75,9.52316596]
[1732382620636,15.5557,255.94,255.79,15.60886596]
[1732382620637,9.52316596,255.86,255.79,15.60886596]
[1732382620932,12.06033342,255.92,255.83,9.52316596]
[1732382620933,6.07658011,255.92,255.83,9.52316596]
[1732382621135,9.52316596,255.94,255.86,20.0]
[1732382621432,9.52316596,255.94,255.87,9.52316596]
[1732382623412,9.52316596,255.94,255.85,9.52316596]
[1732382623612,9.52316596,255.92,255.85,9.52316596]
[1732382624415,9.52316596,255.94,255.85,9.52316596]
[1732382625821,9.52316596,255.94,255.8,15.5724]
[1732382625822,9.52316596,255.94,255.87,9.52316596]
[1732382626216,9.52316596,255.97,255.9,9.52316596]
[1732382627928,9.52316596,255.94,255.86,9.52316596]
[1732382629324,9.52316596,255.96,255.88,9.52316596]
[1732382630048,9.52316596,255.96,255.82,20.0]
[1732382630049,9.52316596,255.94,255.86,9.52316596]
[1732382630250,9.52316596,255.9,255.79,3.84308567]
[1732382630541,43.776884,255.97,255.8,9.52316596]
[1732382630748,9.52316596,255.9,255.82,9.52316596]
[1732382631322,20.0,256.03,255.75,3.84308567]
[1732382631323,21.58349942,256.06,255.88,9.52316596]
[1732382631650,9.52316596,256.05,255.95,9.52316596]
[1732382632835,9.52316596,256.1,255.89,10.20544814]
[1732382632836,9.52316596,256.03,255.93,9.52316596]
[1732382633739,9.52316596,256.03,255.95,9.52316596]
[1732382635355,9.52316596,256.05,255.95,9.52316596]
[1732382635935,9.52316596,256.03,255.93,9.52316596]
[1732382636823,9.02316596,256.03,255.93,9.52316596]
[1732382637355,9.52316596,255.94,255.83,32.45626596]
[1732382637653,9.52316596,255.91,255.83,6.6549]
[1732382638453,9.52316596,255.91,255.81,9.52316596]
[1732382639125,20.0,255.9,255.81,9.52316596]
[1732382639353,20.0,255.88,255.81,9.52316596]
[1732382639557,20.0,255.9,255.83,9.52316596]
[1732382639854,19.5,255.9,255.83,9.52316596]
[1732382640150,19.5,255.9,255.81,9.52316596]
[1732382640449,19.5,255.9,255.77,16.2782]
[1732382640629,9.52316596,255.91,255.81,9.52316596]
[1732382641132,9.52316596,255.89,255.81,9.52316596]
[1732382641331,9.52316596,255.97,255.77,16.2782]
[1732382641332,9.52316596,255.87,255.79,9.52316596]
[1732382642646,9.52316596,255.87,255.76,6.6549]
[1732382642947,9.52316596,255.85,255.76,16.17806596]
[1732382643155,9.52316596,255.87,255.78,9.52316596]
[1732382644534,9.52316596,255.89,255.8,9.52316596]
[1732382644731,43.776884,255.96,255.82,9.52316596]
[1732382644942,20.0,255.91,255.82,9.52316596]
[1732382645549,20.0,255.95,255.82,9.52316596]
[1732382645734,20.0,255.91,255.82,9.52316596]
[1732382646337,20.0,255.91,255.76,6.6549]
[1732382646338,20.0,255.91,255.84,9.52316596]
[1732382647259,9.52316596,255.9,255.76,6.6549]
[1732382647465,9.52316596,255.9,255.81,9.52316596]
[1732382648053,9.52316596,255.9,255.83,9.52316596]
[1732382649049,9.52316596,255.9,255.81,9.52316596]
[1732382650237,9.52316596,255.9,255.83,9.52316596]
[1732382652094,9.52316596,255.92,255.83,9.52316596]
[1732382652356,23.776884,255.96,255.89,9.52316596]
[1732382652541,9.52316596,255.97,255.89,9.52316596]
[1732382652865,9.52316596,255.99,255.91,9.52316596]
[1732382653048,9.52316596,255.97,255.89,9.52316596]
[1732382653358,9.52316596,255.99,255.91,9.52316596]
[1732382654329,9.52316596,256.01,255.85,11.97018216]
[1732382654535,9.52316596,256.01,255.91,9.52316596]
[1732382654735,9.52316596,256.01,255.93,9.52316596]
[1732382655146,9.52316596,255.99,255.91,9.52316596]
[1732382655666,9.52316596,256.01,255.93,9.52316596]
[1732382655837,20.0,256.02,255.93,9.52316596]
[1732382656241,20.0,256.02,255.95,9.52316596]
[1732382658942,9.52316596,256.05,255.96,22.6294]
[1732382659150,9.52316596,256.03,255.96,22.6294]
[1732382659360,9.52316596,256.01,255.96,22.6294]
[1732382659741,9.52316596,256.01,255.85,7.72857304]
[1732382659742,9.52316596,256.01,255.91,9.52316596]
[1732382660644,9.52316596,256.01,255.93,9.52316596]
[1732382662352,9.52316596,256.03,255.95,9.52316596]
[1732382664363,15.601229,256.12,256.01,9.52316596]
[1732382664573,15.601229,256.12,256.04,9.52316596]
[1732382664574,9.52316596,256.12,256.04,9.52316596]
[1732382664963,9.52316596,256.16,256.06,9.52316596]
[1732382665174,9.52316596,256.18,256.1,9.52316596]
[1732382666043,9.52316596,256.2,256.12,9.52316596]
[1732382666252,9.52316596,256.2,256.13,5.30945487]
[1732382666451,9.52316596,256.2,256.1,9.52316596]
[1732382668463,9.52316596,256.18,256.1,9.52316596]
[1732382669475,23.776884,256.27,256.17,9.52316596]
[1732382669476,23.776884,256.25,256.17,9.52316596]
[1732382669651,9.52316596,256.27,256.19,9.52316596]
[1732382669857,9.52316596,256.25,256.17,9.52316596]
[1732382670067,9.52316596,256.25,256.13,16.5336]
[1732382670068,9.52316596,256.23,256.15,9.52316596]
[1732382670245,9.52316596,256.23,256.13,16.5336]